fUSD/lending_fUSD_20250720
["ID","MTS","AMOUNT","RATE_DAILY","PERIOD"]
[373376553,1752976251809,-3352.0,0.000192,2]
[373376554,1752976251819,-952.0,0.000192,2]
[373376555,1752976251828,-2017.0,0.000192,2]
[373376556,1752976251838,-807.0,0.000192,2]
[373376557,1752976251848,-1003.0,0.000192,2]
[373376558,1752976251857,-1268.0,0.000192,2]
[373376559,1752976251866,-562.0,0.000192,2]
[373376560,1752976251876,-1687.0,0.000192,2]
[373376561,1752976251886,-597.771,0.000192,2]
[373376562,1752976251897,-1287.0,0.000192,2]
[373376563,1752976251908,-862.0,0.000192,2]
[373376564,1752976251917,-4138.901,0.000192,2]
[373376565,1752976251928,-21364.0,0.000192,2]
[373376566,1752976251938,-6050.0,0.000192,2]
[373376567,1752976251948,-684.94354185,0.0001921,2]
[373376568,1752976251957,-168.479729,0.00019219,2]
[373376569,1752976251967,-194.427389,0.00019219,2]
[373376570,1752976251978,-151.0,0.00019219,2]
[373376571,1752976251987,-151.0,0.00019219,2]
[373376572,1752976251997,-151.0,0.00019219,2]
[373376573,1752976252009,-203.437045,0.00019219,2]
[373376574,1752976252019,-203.437045,0.00019219,2]
[373376575,1752976252028,-189.096445,0.00019219,2]
[373376576,1752976252038,-189.096443,0.00019219,2]
[373376577,1752976252047,-163.872053,0.00019219,2]
[373376578,1752976252057,-163.872053,0.00019219,2]
[373376579,1752976252067,-151.0,0.00019219,2]
[373376580,1752976252078,-151.0,0.00019247,2]
[373376581,1752976252088,-150.0,0.00019248,2]
[373376582,1752976252097,-150.0,0.00019248,2]
[373376583,1752976252107,-150.0,0.00019248,2]
[373376584,1752976252117,-150.0,0.00019248,2]
[373376585,1752976252126,-150.0,0.00019248,2]
[373376586,1752976252136,-150.0,0.00019248,2]
[373376587,1752976252145,-150.0,0.00019248,2]
[373376588,1752976252155,-151.0,0.00019259,2]
[373376589,1752976252165,-743.94457458,0.0001926,2]
[373376590,1752976252175,-500.0,0.00019273,2]
[373376591,1752976252187,-513.40344777,0.00019273,2]
[373376592,1752976252196,-199.09789,0.00019286,2]
[373376593,1752976252206,-199.09789,0.00019286,2]
[373376594,1752976252216,-500.0,0.00019286,2]
[373376595,1752976252226,-500.0,0.00019286,2]
[373376596,1752976252236,-500.0,0.00019286,2]
[373376597,1752976252248,-500.0,0.00019286,2]
[373376598,1752976252258,-500.0,0.00019286,2]
[373376599,1752976252269,-362.28011577,0.00019286,2]
[373376600,1752976252279,-175.43982,0.00019286,2]
[373376601,1752976252288,-175.43982,0.00019286,2]
[373376602,1752976252298,-184.107189,0.00019286,2]
[373376603,1752976252308,-282.685035,0.00019286,2]
[373376604,1752976252318,-282.685035,0.00019286,2]
[373376605,1752976252327,-907.248053,0.00019286,2]
[373376606,1752976252337,-907.248053,0.00019286,2]
[373376607,1752976252346,-659.62,0.00019286,2]
[373376608,1752976252356,-151.0,0.00019287,2]
[373376609,1752976252366,-151.0,0.00019287,2]
[373376610,1752976252375,-151.0,0.00019287,2]
[373376611,1752976252385,-151.0,0.00019287,2]
[373376612,1752976252395,-151.0,0.00019287,2]
[373376613,1752976252405,-151.0,0.00019287,2]
[373376614,1752976252414,-151.0,0.00019287,2]
[373376615,1752976252424,-151.0,0.00019287,2]
[373376616,1752976252434,-199.09789,0.00019287,2]
[373376617,1752976252444,-199.09789,0.00019287,2]
[373376618,1752976252454,-199.09789,0.00019287,2]
[373376619,1752976252463,-199.097895,0.00019287,2]
[373376620,1752976252473,-151.0,0.00019287,2]
[373376621,1752976252483,-151.0,0.00019287,2]
[373376622,1752976252493,-151.0,0.00019287,2]
[373376623,1752976252503,-228.391408,0.00019287,2]
[373376624,1752976252512,-168.479729,0.00019287,2]
[373376625,1752976252522,-168.479726,0.00019287,2]
[373376626,1752976252532,-151.0,0.00019287,2]
[373376627,1752976252542,-151.0,0.00019287,2]
[373376628,1752976252551,-193.036956,0.00019287,2]
[373376629,1752976252561,-480.0,0.00019287,2]
[373376630,1752976252573,-151.0,0.00019287,2]
[373376631,1752976252583,-151.0,0.00019287,2]
[373376632,1752976252592,-151.0,0.00019287,2]
[373376633,1752976252602,-151.0,0.00019287,2]
[373376634,1752976252612,-203.437045,0.00019287,2]
[373376635,1752976252622,-203.437045,0.00019287,2]
[373376636,1752976252632,-203.437045,0.00019287,2]
[373376637,1752976252642,-203.437053,0.00019287,2]
[373376638,1752976252651,-272.06532283,0.00019287,2]
[373376639,1752976252661,-151.0,0.00019287,2]
[373376640,1752976252671,-189.368757,0.00019287,2]
[373376641,1752976252681,-480.0,0.00019287,2]
[373376642,1752976252691,-480.0,0.00019287,2]
[373376643,1752976252701,-151.0,0.00019287,2]
[373376644,1752976252712,-151.0,0.00019287,2]
[373376645,1752976252721,-271.818218,0.00019287,2]
[373376646,1752976252731,-412.523642,0.00019287,2]
[373376647,1752976252741,-412.523642,0.00019287,2]
[373376648,1752976252750,-151.0,0.00019287,2]
[373376649,1752976252760,-211.370413,0.00019287,2]
[373376650,1752976252770,-412.523642,0.00019287,2]
[373376651,1752976252781,-412.523644,0.00019287,2]
[373376652,1752976252792,-359.135084,0.00019287,2]
[373376653,1752976252802,-359.135084,0.00019287,2]
[373376654,1752976252812,-359.135084,0.00019287,2]
[373376655,1752976252822,-359.135078,0.00019287,2]
[373376656,1752976252832,-158.615586,0.00019287,2]
[373376657,1752976252842,-158.615586,0.00019287,2]
[373376658,1752976252853,-158.615586,0.00019287,2]
[373376659,1752976252863,-158.615586,0.00019287,2]
[373376660,1752976252874,-158.615586,0.00019287,2]
[373376661,1752976252886,-158.615586,0.00019287,2]
[373376662,1752976252899,-158.615586,0.00019287,2]
[373376663,1752976252909,-158.615578,0.00019287,2]
[373376664,1752976252920,-480.0,0.00019287,2]
[373376665,1752976252929,-480.0,0.00019287,2]
[373376666,1752976252939,-557.65066267,0.00019287,2]
[373376667,1752976252948,-218.15090654,0.00019287,2]
[373376668,1752976252957,-480.0,0.00019287,2]
[373376669,1752976252967,-163.872053,0.00019287,2]
[373376670,1752976252977,-163.872053,0.00019287,2]
[373376671,1752976252987,-163.872053,0.00019287,2]
[373376672,1752976252997,-163.872053,0.00019287,2]
[373376673,1752976253006,-163.872053,0.00019287,2]
[373376674,1752976253016,-163.872049,0.00019287,2]
[373376675,1752976253026,-480.0,0.00019287,2]
[373376676,1752976253036,-157.465076,0.00019287,2]
[373376677,1752976253046,-480.0,0.00019287,2]
[373376678,1752976253055,-480.0,0.00019287,2]
[373376679,1752976253065,-480.0,0.00019287,2]
[373376680,1752976253075,-480.0,0.00019287,2]
[373376681,1752976253085,-480.0,0.00019287,2]
[373376682,1752976253095,-480.0,0.00019287,2]
[373376683,1752976253104,-480.0,0.00019287,2]
[373376684,1752976253114,-480.0,0.00019287,2]
[373376685,1752976253124,-480.0,0.00019287,2]
[373376686,1752976253133,-480.0,0.00019287,2]
[373376687,1752976253143,-480.0,0.00019287,2]
[373376688,1752976253153,-480.0,0.00019287,2]
[373376689,1752976253163,-480.0,0.00019287,2]
[373376690,1752976253172,-151.0,0.00019287,2]
[373376691,1752976253182,-151.0,0.00019287,2]
[373376692,1752976253191,-480.0,0.00019287,2]
[373376693,1752976253201,-498.41048504,0.00019287,2]
[373376694,1752976253211,-480.0,0.00019287,2]
[373376695,1752976253221,-480.0,0.00019287,2]
[373376696,1752976253230,-480.0,0.00019287,2]
[373376697,1752976253240,-151.0,0.00019287,2]
[373376698,1752976253250,-156.240784,0.00019287,2]
[373376699,1752976253259,-480.0,0.00019287,2]
[373376700,1752976253269,-480.0,0.00019287,2]
[373376701,1752976253279,-168.382688,0.00019287,2]
[373376702,1752976253290,-168.382688,0.00019287,2]
[373376703,1752976253299,-168.382688,0.00019287,2]
[373376704,1752976253309,-168.382685,0.00019287,2]
[373376705,1752976253319,-402.06571168,0.00019287,2]
[373376706,1752976253329,-480.0,0.00019287,2]
[373376707,1752976253339,-480.0,0.00019287,2]
[373376708,1752976253349,-480.0,0.00019287,2]
[373376709,1752976253359,-480.0,0.00019287,2]
[373376710,1752976253369,-480.0,0.00019287,2]
[373376711,1752976253378,-480.0,0.00019287,2]
[373376712,1752976253389,-683.22,0.00019287,2]
[373376713,1752976253398,-480.0,0.00019287,2]
[373376714,1752976253408,-480.0,0.00019287,2]
[373376715,1752976253417,-4429.76,0.00019287,2]
[373376716,1752976253427,-480.0,0.00019287,2]
[373376717,1752976253436,-480.0,0.00019287,2]
[373376718,1752976253445,-480.0,0.00019287,2]
[373376719,1752976253454,-736.27,0.00019287,2]
[373376720,1752976253464,-480.0,0.00019287,2]
[373376721,1752976253474,-171.847379,0.00019287,2]
[373376722,1752976253484,-171.847379,0.00019287,2]
[373376723,1752976253494,-489.15,0.00019287,2]
[373376724,1752976253504,-480.0,0.00019287,2]
[373376725,1752976253514,-171.847379,0.00019287,2]
[373376726,1752976253525,-480.0,0.00019287,2]
[373376727,1752976253534,-171.847382,0.00019287,2]
[373376728,1752976253545,-617.9,0.00019287,2]
[373376729,1752976253555,-852.66,0.00019287,2]
[373376730,1752976253566,-899.62,0.00019287,2]
[373376731,1752976253577,-480.0,0.00019287,2]
[373376732,1752976253588,-480.0,0.00019287,2]
[373376733,1752976253598,-480.0,0.00019287,2]
[373376734,1752976253607,-480.0,0.00019287,2]
[373376735,1752976253617,-480.0,0.00019287,2]
[373376736,1752976253627,-480.0,0.00019287,2]
[373376737,1752976253636,-480.0,0.00019287,2]
[373376738,1752976253647,-852.03,0.00019287,2]
[373376739,1752976253656,-480.0,0.00019287,2]
[373376740,1752976253666,-571.02,0.00019287,2]
[373376741,1752976253676,-480.0,0.00019287,2]
[373376742,1752976253920,-519.26,0.00019287,2]
[373376743,1752976253929,-480.0,0.00019287,2]
[373376744,1752976253939,-480.0,0.00019287,2]
[373376745,1752976253948,-480.0,0.00019287,2]
[373376746,1752976253957,-554.7,0.00019287,2]
[373376747,1752976253966,-480.0,0.00019287,2]
[373376748,1752976253974,-480.0,0.00019287,2]
[373376749,1752976253983,-480.0,0.00019287,2]
[373376750,1752976253992,-483.57,0.00019287,2]
[373376751,1752976254002,-480.0,0.00019287,2]
[373376752,1752976254011,-480.0,0.00019287,2]
[373376753,1752976254023,-480.0,0.00019287,2]
[373376754,1752976254033,-515.03,0.00019287,2]
[373376755,1752976254042,-480.0,0.00019287,2]
[373376756,1752976254051,-480.0,0.00019287,2]
[373376757,1752976254061,-480.0,0.00019287,2]
[373376758,1752976254070,-480.0,0.00019287,2]
[373376759,1752976254079,-480.0,0.00019287,2]
[373376760,1752976254088,-480.0,0.00019287,2]
[373376761,1752976254098,-480.0,0.00019287,2]
[373376762,1752976254107,-151.0,0.00019287,2]
[373376763,1752976254116,-151.0,0.00019287,2]
[373376764,1752976254125,-480.0,0.00019287,2]
[373376765,1752976254135,-480.0,0.00019287,2]
[373376766,1752976254144,-480.0,0.00019287,2]
[373376767,1752976254154,-485.44,0.00019287,2]
[373376768,1752976254163,-480.0,0.00019287,2]
[373376769,1752976254173,-480.0,0.00019287,2]
[373376770,1752976254183,-670.56,0.00019287,2]
[373376771,1752976254193,-480.0,0.00019287,2]
[373376772,1752976254202,-225.804267,0.00019287,2]
[373376773,1752976254211,-225.804267,0.00019287,2]
[373376774,1752976254221,-480.0,0.00019287,2]
[373376775,1752976254230,-480.0,0.00019287,2]
[373376776,1752976254239,-480.0,0.00019287,2]
[373376777,1752976254249,-1489.32,0.00019287,2]
[373376778,1752976254258,-459.02754904,0.00019287,2]
[373376779,1752976254267,-225.804267,0.00019287,2]
[373376780,1752976254277,-225.804265,0.00019287,2]
[373376781,1752976254286,-480.0,0.00019287,2]
[373376782,1752976254295,-480.0,0.00019287,2]
[373376783,1752976254306,-480.0,0.00019287,2]
[373376784,1752976254315,-480.0,0.00019287,2]
[373376785,1752976254324,-642.45,0.00019287,2]
[373376786,1752976254333,-590.0,0.00019287,2]
[373376787,1752976254341,-890.19,0.00019287,2]
[373376788,1752976254350,-480.0,0.00019287,2]
[373376789,1752976254359,-480.0,0.00019287,2]
[373376790,1752976254368,-386.692879,0.00019287,2]
[373376791,1752976254377,-480.0,0.00019287,2]
[373376792,1752976254387,-515.91,0.00019287,2]
[373376793,1752976254396,-171.28762484,0.00019287,2]
[373376794,1752976254406,-480.0,0.00019287,2]
[373376795,1752976254415,-480.0,0.00019287,2]
[373376796,1752976254424,-480.0,0.00019287,2]
[373376797,1752976254434,-480.0,0.00019287,2]
[373376798,1752976254444,-480.0,0.00019287,2]
[373376799,1752976254453,-701.81,0.00019287,2]
[373376800,1752976254462,-480.0,0.00019287,2]
[373376801,1752976254471,-480.0,0.00019287,2]
[373376802,1752976254481,-789.0,0.00019287,2]
[373376803,1752976254490,-480.0,0.00019287,2]
[373376804,1752976254500,-480.0,0.00019287,2]
[373376805,1752976254510,-480.0,0.00019287,2]
[373376806,1752976254520,-480.0,0.00019287,2]
[373376807,1752976254530,-865.92,0.00019287,2]
[373376808,1752976254540,-480.0,0.00019287,2]
[373376809,1752976254550,-651.34,0.00019287,2]
[373376810,1752976254559,-480.0,0.00019287,2]
[373376811,1752976254569,-152.259912,0.00019287,2]
[373376812,1752976254578,-480.0,0.00019287,2]
[373376813,1752976254588,-480.0,0.00019287,2]
[373376814,1752976254598,-480.0,0.00019287,2]
[373376815,1752976254607,-529.8,0.00019287,2]
[373376816,1752976254616,-480.0,0.00019287,2]
[373376817,1752976254627,-480.0,0.00019287,2]
[373376818,1752976254636,-480.0,0.00019287,2]
[373376819,1752976254647,-480.0,0.00019287,2]
[373376820,1752976254658,-290.49949811,0.00019287,2]
[373376821,1752976254667,-480.0,0.00019287,2]
[373376822,1752976254677,-460.989115,0.00019287,2]
[373376823,1752976254687,-928.55,0.00019287,2]
[373376824,1752976254697,-638.96,0.00019287,2]
[373376825,1752976254706,-480.0,0.00019287,2]
[373376826,1752976254717,-480.0,0.00019287,2]
[373376827,1752976254727,-480.0,0.00019287,2]
[373376828,1752976254738,-443.937646,0.00019287,2]
[373376829,1752976254748,-837.49,0.00019287,2]
[373376830,1752976254758,-480.0,0.00019287,2]
[373376831,1752976254768,-344.869005,0.00019287,2]
[373376832,1752976254778,-480.0,0.00019287,2]
[373376833,1752976254787,-480.0,0.00019287,2]
[373376834,1752976254797,-480.0,0.00019287,2]
[373376835,1752976254807,-480.0,0.00019287,2]
[373376836,1752976254816,-151.0,0.00019287,2]
[373376837,1752976254826,-151.0,0.00019287,2]
[373376838,1752976254835,-480.0,0.00019287,2]
[373376839,1752976254845,-1118.56,0.00019287,2]
[373376840,1752976254854,-653.65,0.00019287,2]
[373376841,1752976254864,-480.0,0.00019287,2]
[373376842,1752976254875,-480.0,0.00019287,2]
[373376843,1752976254886,-480.0,0.00019287,2]
[373376844,1752976254897,-2196.41,0.00019287,2]
[373376845,1752976254907,-567.75,0.00019287,2]
[373376846,1752976254916,-480.0,0.00019287,2]
[373376847,1752976254926,-480.0,0.00019287,2]
[373376848,1752976254936,-574.8,0.00019287,2]
[373376849,1752976254946,-480.0,0.00019287,2]
[373376850,1752976254954,-480.0,0.00019287,2]
[373376851,1752976254963,-480.0,0.00019287,2]
[373376852,1752976254975,-480.0,0.00019287,2]
[373376853,1752976254984,-660.8,0.00019287,2]
[373376854,1752976254993,-480.0,0.00019287,2]
[373376855,1752976255003,-480.0,0.00019287,2]
[373376856,1752976255012,-480.0,0.00019287,2]
[373376857,1752976255023,-740.35,0.00019287,2]
[373376858,1752976255033,-480.0,0.00019287,2]
[373376859,1752976255043,-416.46705003,0.00019287,2]
[373376860,1752976255054,-323.08485601,0.00019287,2]
[373376861,1752976255064,-658.91,0.00019287,2]
[373376862,1752976255073,-480.0,0.00019287,2]
[373376863,1752976255083,-480.0,0.00019287,2]
[373376864,1752976255092,-746.47,0.00019287,2]
[373376865,1752976255104,-1099.72,0.00019287,2]
[373376866,1752976255114,-480.0,0.00019287,2]
[373376867,1752976255124,-480.0,0.00019287,2]
[373376868,1752976255133,-1615.6,0.00019287,2]
[373376869,1752976255143,-480.0,0.00019287,2]
[373376870,1752976255152,-480.0,0.00019287,2]
[373376871,1752976255162,-480.0,0.00019287,2]
[373376872,1752976255171,-584.86,0.00019287,2]
[373376873,1752976255181,-480.0,0.00019287,2]
[373376874,1752976255191,-195.958462,0.00019287,2]
[373376875,1752976255200,-1035.72,0.00019287,2]
[373376876,1752976255209,-195.958462,0.00019287,2]
[373376877,1752976255218,-480.0,0.00019287,2]
[373376878,1752976255228,-195.958462,0.00019287,2]
[373376879,1752976255237,-195.958456,0.00019287,2]
[373376880,1752976255247,-163.388547,0.00019287,2]
[373376881,1752976255256,-480.0,0.00019287,2]
[373376882,1752976255265,-600.4,0.00019287,2]
[373376883,1752976255276,-480.0,0.00019287,2]
[373376884,1752976255285,-480.0,0.00019287,2]
[373376885,1752976255295,-541.69,0.00019287,2]
[373376886,1752976255304,-480.0,0.00019287,2]
[373376887,1752976255314,-480.0,0.00019287,2]
[373376888,1752976255323,-480.0,0.00019287,2]
[373376889,1752976255332,-547.58968454,0.00019287,2]
[373376890,1752976255342,-480.0,0.00019287,2]
[373376891,1752976255351,-480.0,0.00019287,2]
[373376892,1752976255361,-151.0,0.00019287,2]
[373376893,1752976255370,-153.666057,0.00019287,2]
[373376894,1752976255379,-1389.76,0.00019287,2]
[373376895,1752976255391,-480.0,0.00019287,2]
[373376896,1752976255401,-560.26,0.00019287,2]
[373376897,1752976255410,-480.0,0.00019287,2]
[373376898,1752976255420,-480.0,0.00019287,2]
[373376899,1752976255430,-534.49,0.00019287,2]
[373376900,1752976255440,-3006.49,0.00019287,2]
[373376901,1752976255449,-480.0,0.00019287,2]
[373376902,1752976255459,-480.0,0.00019287,2]
[373376903,1752976255468,-480.0,0.00019287,2]
[373376904,1752976255478,-480.0,0.00019287,2]
[373376905,1752976255487,-5337.74,0.00019287,2]
[373376906,1752976255496,-480.0,0.00019287,2]
[373376907,1752976255506,-480.0,0.00019287,2]
[373376908,1752976255515,-480.0,0.00019287,2]
[373376909,1752976255526,-480.0,0.00019287,2]
[373376910,1752976255535,-480.0,0.00019287,2]
[373376911,1752976255545,-480.0,0.00019287,2]
[373376912,1752976255554,-545.87,0.00019287,2]
[373376913,1752976255563,-480.0,0.00019287,2]
[373376914,1752976255572,-480.0,0.00019287,2]
[373376915,1752976255581,-480.0,0.00019287,2]
[373376916,1752976255590,-480.0,0.00019287,2]
[373376917,1752976255599,-1043.97,0.00019287,2]
[373376918,1752976255609,-3359.24,0.00019287,2]
[373376919,1752976255619,-480.0,0.00019287,2]
[373376920,1752976255628,-575.63,0.00019287,2]
[373376921,1752976255638,-480.0,0.00019287,2]
[373376922,1752976255647,-480.0,0.00019287,2]
[373376923,1752976255656,-1971.95,0.00019287,2]
[373376924,1752976255667,-525.14,0.00019287,2]
[373376925,1752976255676,-977.88,0.00019287,2]
[373376926,1752976255685,-480.0,0.00019287,2]
[373376927,1752976255694,-480.0,0.00019287,2]
[373376928,1752976255704,-637.77,0.00019287,2]
[373376929,1752976255713,-480.0,0.00019287,2]
[373376930,1752976255722,-480.0,0.00019287,2]
[373376931,1752976255732,-994.88,0.00019287,2]
[373376932,1752976255741,-480.0,0.00019287,2]
[373376933,1752976255751,-480.0,0.00019287,2]
[373376934,1752976255761,-480.0,0.00019287,2]
[373376935,1752976255771,-1041.68,0.00019287,2]
[373376936,1752976255780,-682.51,0.00019287,2]
[373376937,1752976255789,-550.63,0.00019287,2]
[373376938,1752976255799,-4039.7,0.00019287,2]
[373376939,1752976255809,-480.0,0.00019287,2]
[373376940,1752976255818,-2203.38,0.00019287,2]
[373376941,1752976255828,-480.0,0.00019287,2]
[373376943,1752976255837,-1000.08,0.00019287,2]
[373376944,1752976255847,-480.0,0.00019287,2]
[373376945,1752976255857,-480.0,0.00019287,2]
[373376946,1752976255866,-1033.57,0.00019287,2]
[373376947,1752976255875,-480.0,0.00019287,2]
[373376948,1752976255884,-615.08,0.00019287,2]
[373376949,1752976255896,-480.0,0.00019287,2]
[373376950,1752976255906,-151.0,0.00019287,2]
[373376951,1752976255915,-480.0,0.00019287,2]
[373376952,1752976255924,-151.0,0.00019287,2]
[373376953,1752976255934,-955.87,0.00019287,2]
[373376954,1752976255943,-480.0,0.00019287,2]
[373376955,1752976255952,-480.0,0.00019287,2]
[373376956,1752976255962,-480.0,0.00019287,2]
[373376957,1752976255971,-175.43982,0.00019287,2]
[373376958,1752976255981,-175.43982,0.00019287,2]
[373376959,1752976255990,-780.95,0.00019287,2]
[373376960,1752976256000,-480.0,0.00019287,2]
[373376961,1752976256009,-540.57,0.00019287,2]
[373376962,1752976256018,-2257.53,0.00019287,2]
[373376963,1752976256028,-175.43982,0.00019287,2]
[373376964,1752976256038,-175.439817,0.00019287,2]
[373376965,1752976256047,-480.0,0.00019287,2]
[373376966,1752976256056,-480.0,0.00019287,2]
[373376967,1752976256066,-480.0,0.00019287,2]
[373376968,1752976256075,-480.0,0.00019287,2]
[373376969,1752976256085,-480.0,0.00019287,2]
[373376970,1752976256094,-852.91,0.00019287,2]
[373376971,1752976256104,-480.0,0.00019287,2]
[373376972,1752976256113,-480.0,0.00019287,2]
[373376973,1752976256123,-480.0,0.00019287,2]
[373376974,1752976256133,-809.87,0.00019287,2]
[373376975,1752976256142,-2870.66,0.00019287,2]
[373376976,1752976256153,-480.0,0.00019287,2]
[373376977,1752976256164,-480.0,0.00019287,2]
[373376978,1752976256236,-1118.31,0.00019287,2]
[373376979,1752976256245,-480.0,0.00019287,2]
[373376980,1752976256254,-151.0,0.00019287,2]
[373376981,1752976256263,-156.002923,0.00019287,2]
[373376982,1752976256273,-803.87,0.00019287,2]
[373376983,1752976256283,-740.37,0.00019287,2]
[373376984,1752976256292,-958.33,0.00019287,2]
[373376985,1752976256301,-480.0,0.00019287,2]
[373376986,1752976256310,-504.19,0.00019287,2]
[373376987,1752976256319,-3397.86,0.00019287,2]
[373376988,1752976256328,-480.0,0.00019287,2]
[373376989,1752976256337,-657.26,0.00019287,2]
[373376990,1752976256347,-480.0,0.00019287,2]
[373376991,1752976256357,-681.07,0.00019287,2]
[373376992,1752976256366,-480.0,0.00019287,2]
[373376993,1752976256376,-2540.68,0.00019287,2]
[373376994,1752976256385,-1355.38,0.00019287,2]
[373376995,1752976256394,-910.21,0.00019287,2]
[373376996,1752976256404,-718.35,0.00019287,2]
[373376997,1752976256413,-480.0,0.00019287,2]
[373376998,1752976256421,-480.0,0.00019287,2]
[373376999,1752976256429,-343.340407,0.00019287,2]
[373377000,1752976256438,-343.340407,0.00019287,2]
[373377001,1752976256447,-480.0,0.00019287,2]
[373377002,1752976256457,-756.72,0.00019287,2]
[373377003,1752976256466,-9103.88,0.00019287,2]
[373377004,1752976256476,-343.340407,0.00019287,2]
[373377005,1752976256485,-2862.65,0.00019287,2]
[373377006,1752976256496,-4774.77,0.00019287,2]
[373377007,1752976256505,-343.340412,0.00019287,2]
[373377008,1752976256515,-526.73,0.00019287,2]
[373377009,1752976256527,-1208.73,0.00019287,2]
[373377010,1752976256537,-480.0,0.00019287,2]
[373377011,1752976256546,-480.0,0.00019287,2]
[373377012,1752976256555,-1838.65,0.00019287,2]
[373377013,1752976256563,-480.0,0.00019287,2]
[373377014,1752976256571,-590.22,0.00019287,2]
[373377015,1752976256581,-480.0,0.00019287,2]
[373377016,1752976256590,-1636.51,0.00019287,2]
[373377017,1752976256599,-480.0,0.00019287,2]
[373377018,1752976256609,-480.0,0.00019287,2]
[373377019,1752976256619,-1063.68,0.00019287,2]
[373377020,1752976256628,-561.21,0.00019287,2]
[373377021,1752976256638,-480.0,0.00019287,2]
[373377022,1752976256648,-852.7,0.00019287,2]
[373377023,1752976256657,-480.0,0.00019287,2]
[373377024,1752976256667,-569.95,0.00019287,2]
[373377025,1752976256676,-6268.06,0.00019287,2]
[373377026,1752976256685,-1041.51,0.00019287,2]
[373377027,1752976256694,-480.0,0.00019287,2]
[373377028,1752976256703,-1298.99,0.00019287,2]
[373377029,1752976256713,-480.0,0.00019287,2]
[373377030,1752976256722,-666.13,0.00019287,2]
[373377031,1752976256731,-1948.59,0.00019287,2]
[373377032,1752976256741,-3960.08,0.00019287,2]
[373377033,1752976256750,-480.0,0.00019287,2]
[373377034,1752976256759,-480.0,0.00019287,2]
[373377035,1752976256769,-480.0,0.00019287,2]
[373377036,1752976256778,-480.0,0.00019287,2]
[373377037,1752976256787,-1291.96,0.00019287,2]
[373377038,1752976256796,-1040.82,0.00019287,2]
[373377039,1752976256804,-1249.23,0.00019287,2]
[373377040,1752976256813,-1601.14,0.00019287,2]
[373377041,1752976256822,-480.0,0.00019287,2]
[373377042,1752976256831,-696.63,0.00019287,2]
[373377043,1752976256838,-480.0,0.00019287,2]
[373377044,1752976256847,-1184.75,0.00019287,2]
[373377045,1752976256857,-480.0,0.00019287,2]
[373377046,1752976256865,-480.0,0.00019287,2]
[373377047,1752976256875,-880.33,0.00019287,2]
[373377048,1752976256884,-480.0,0.00019287,2]
[373377049,1752976256897,-646.35,0.00019287,2]
[373377050,1752976256908,-480.0,0.00019287,2]
[373377051,1752976256920,-880.58,0.00019287,2]
[373377052,1752976256930,-671.42,0.00019287,2]
[373377053,1752976256939,-480.0,0.00019287,2]